bitfinex-derivatives/quotes_ETHF0:USTF0_20241102
["timestamp","ask_amount","ask_price","bid_price","bid_amount"]
[1730536480691,3.2078,2503.3,2503.2,5.71746475]
[1730536481889,0.8884,2504.0,2503.2,5.71746475]
[1730536481890,0.27966,2503.9,2503.8,0.27966]
[1730536482085,1.62745,2504.0,2503.9,4.27646]
[1730536482494,1.62745,2504.0,2503.9,3.9968]
[1730536492501,6.83405662,2504.0,2503.9,3.9968]
[1730536493094,1.62745,2504.0,2503.9,3.9968]
[1730536495395,1.19125,2504.0,2503.9,4.27646]
[1730536495699,5.87104089,2504.0,2503.9,4.4601]
[1730536497098,1.19125,2504.0,2503.9,4.4601]
[1730536497307,5.87015404,2504.0,2503.9,4.4601]
[1730536499608,1.19125,2504.0,2503.9,4.4601]
[1730536500207,1.19125,2504.0,2503.9,3.9968]
[1730536500411,5.75095247,2504.0,2503.9,3.9968]
[1730536500709,2.63218475,2504.0,2503.9,3.9968]
[1730536501619,5.75095247,2504.0,2503.9,3.9968]
[1730536503101,5.47130247,2504.0,2503.9,3.9968]
[1730536503309,5.75095247,2504.0,2503.9,3.9968]
[1730536504413,8.95875247,2504.0,2503.9,3.7286927]
[1730536504609,0.2797,2503.5,2503.4,3.48751]
[1730536505011,0.2797,2503.5,2503.4,5.7420027]
[1730536505312,1.1391,2503.6,2503.5,0.2797]
[1730536505509,1.1391,2503.6,2503.5,2.2544927]
[1730536505908,1.1391,2503.6,2503.5,2.5341927]
[1730536506107,1.1391,2503.6,2503.5,2.9950927]
[1730536507616,1.1391,2503.6,2503.5,2.7153927]
[1730536508513,1.1391,2503.6,2503.5,2.9950927]
[1730536508710,1.1391,2503.6,2503.5,2.7153927]
[1730536509012,1.1391,2503.6,2503.5,2.9950927]
[1730536510417,1.1391,2503.6,2503.5,2.7153927]
[1730536514622,5.29745696,2503.6,2503.5,2.7153927]
[1730536515227,1.1391,2503.6,2503.5,2.7153927]
[1730536517530,5.81800404,2503.6,2503.5,2.7153927]
[1730536519724,5.81800404,2503.6,2503.5,2.2544927]
[1730536520225,1.1391,2503.6,2503.5,2.2544927]
[1730536520628,0.8594,2503.6,2503.3,0.4578]
[1730536520833,5.88788882,2503.4,2503.3,0.4578]
[1730536521031,5.88788882,2503.4,2503.3,2.7122927]
[1730536522928,1.72064475,2503.4,2503.3,2.7122927]
[1730536523225,5.88788882,2503.4,2503.3,2.7122927]
[1730536523637,1.72064475,2503.4,2503.3,2.7122927]
[1730536526228,5.36654748,2503.4,2503.3,2.7122927]
[1730536527539,3.92561273,2503.4,2503.3,2.9920127]
[1730536528133,3.92538434,2503.4,2503.3,2.9920127]
[1730536528326,3.92538434,2503.4,2503.3,2.7122927]
[1730536528531,3.92532047,2503.4,2503.3,2.7122927]
[1730536529132,3.92532047,2503.4,2503.3,0.4578]
[1730536529736,0.27971,2503.4,2503.3,0.4578]
[1730536531136,4.92844475,2503.4,2503.3,0.4578]
[1730536531331,1.72064475,2503.4,2503.3,0.4578]
[1730536534233,1.72064475,2503.4,2503.3,2.7122927]
[1730536535248,1.72064475,2503.4,2503.3,0.4578]
[1730536538342,4.84545238,2503.4,2503.3,0.4578]
[1730536540243,4.84545238,2503.4,2503.3,2.7122927]
[1730536540742,4.84545238,2503.4,2503.3,2.2544927]
[1730536540948,2.15704475,2503.4,2503.3,2.2544927]
[1730536541143,5.80265522,2503.4,2503.3,2.2544927]
[1730536544050,2.15704475,2503.4,2503.3,2.2544927]
[1730536544254,5.8040818,2503.4,2503.3,2.2544927]
[1730536544459,5.5243718,2503.4,2502.9,0.42]
[1730536544645,0.27976,2503.0,2502.9,0.69977]
[1730536544851,3.92679705,2503.0,2502.9,1.28643044]
[1730536545047,3.92679705,2503.0,2502.9,3.54092314]
[1730536547243,3.92679705,2503.0,2502.9,2.9542627]
[1730536547955,0.27976,2503.0,2502.9,2.6744927]
[1730536548648,0.70286,2503.0,2502.9,2.6744927]
[1730536549248,0.70286,2503.0,2502.9,2.9542627]
[1730536554151,0.70286,2503.0,2502.9,0.69977]
[1730536554349,0.27976,2503.0,2502.9,0.69977]
[1730536559261,0.27976,2503.0,2502.9,2.9542627]
[1730536560755,0.27976,2503.0,2502.9,2.6744927]
[1730536562357,0.27976,2503.0,2502.9,2.9542627]
[1730536563266,0.27976,2503.0,2502.9,2.6744927]
[1730536563768,3.40586202,2503.0,2502.9,2.6744927]
[1730536564063,0.27976,2503.0,2502.9,2.9542627]
[1730536566864,3.40586202,2503.0,2502.9,2.9542627]
[1730536567661,3.12610202,2503.1,2502.9,2.6744927]
[1730536567866,3.12610202,2503.1,2503.0,2.5342527]
[1730536568261,7.13464902,2503.3,2503.1,0.27975]
[1730536568262,3.12610202,2503.2,2503.1,0.27975]
[1730536568459,3.12610202,2503.2,2503.1,0.73835]
[1730536568659,3.12610202,2503.2,2503.1,2.9928427]
[1730536568855,3.40583202,2503.2,2503.1,2.9928427]
[1730536569359,3.12610202,2503.2,2503.1,2.9928427]
[1730536572167,3.12610202,2503.2,2503.1,0.73835]
[1730536573068,3.12610202,2503.3,2503.1,1.04546418]
[1730536573268,0.27972,2503.3,2503.2,0.27973]
[1730536573464,3.64711902,2503.4,2503.3,0.27972]
[1730536573669,3.40750332,2503.4,2503.3,0.27972]
[1730536573971,3.40754747,2503.4,2503.3,0.27972]
[1730536574171,0.27971,2503.4,2503.3,0.27972]
[1730536574368,3.40729961,2503.4,2503.3,0.86656842]
[1730536574568,3.40729961,2503.4,2503.3,0.27972]
[1730536574965,0.27971,2503.4,2503.3,0.27972]
[1730536576073,0.27971,2503.4,2503.3,0.86655512]
[1730536576271,4.84823436,2503.5,2503.1,1.89953475]
[1730536576470,4.84823436,2503.5,2503.3,0.27971]
[1730536577275,4.84823436,2503.5,2503.4,2.2544927]
[1730536579572,4.84823436,2503.5,2503.4,2.7146927]
[1730536580780,4.84823436,2503.5,2503.4,2.9944027]
[1730536581481,4.84823436,2503.5,2503.4,2.7146927]
[1730536582083,5.88788882,2503.5,2503.4,2.7146927]
[1730536583272,4.44695407,2503.5,2503.4,2.9944027]
[1730536584377,0.27971,2503.5,2503.4,2.9944027]
[1730536584882,4.44695407,2503.5,2503.4,2.9944027]
[1730536585277,0.27971,2503.5,2503.4,2.9944027]
[1730536585476,0.27971,2503.5,2503.4,2.7146927]
[1730536585883,5.88788882,2503.5,2503.4,2.7146927]
[1730536586481,1.72064475,2503.5,2503.4,2.7146927]
[1730536586881,5.88788882,2503.5,2503.4,2.7146927]
[1730536587580,5.88788882,2503.5,2503.4,2.2544927]
[1730536587777,5.88788882,2503.5,2503.4,1.90434623]
[1730536587990,0.27975,2503.1,2503.0,0.73406]
[1730536588179,0.27975,2503.1,2503.0,0.4543]
[1730536588180,5.36690605,2503.1,2503.0,0.4543]
[1730536588784,5.36690605,2503.1,2503.0,0.73406]
[1730536588785,5.80000605,2503.1,2503.0,0.73406]
[1730536588983,2.15378475,2503.1,2503.0,0.27976]
[1730536589582,1.87403475,2503.1,2502.9,0.4381]
[1730536589788,0.27976,2503.0,2502.9,0.71786]
[1730536589983,1.87403475,2503.1,2502.8,0.4215]
[1730536590184,0.27977,2502.9,2502.8,0.4215]
[1730536591588,0.27977,2502.9,2502.8,0.70128]
[1730536593984,1.44093475,2503.0,2502.7,3.6547]
[1730536594187,1.19208,2502.8,2502.7,3.93449]
[1730536594382,1.19208,2502.8,2502.7,3.2078]
[1730536594383,2.63301475,2502.8,2502.7,3.2078]
[1730536595092,2.63301475,2502.8,2502.7,3.48759]
[1730536596190,2.63301475,2502.8,2502.7,0.27979]
[1730536597193,1.19208,2502.8,2502.7,0.27979]
[1730536597392,0.27979,2502.7,2502.6,4.36709]
[1730536597591,0.27979,2502.7,2502.6,3.90649]
[1730536597896,1.3462,2502.8,2502.6,3.6267]
[1730536598099,1.62599,2502.8,2502.7,0.27979]
[1730536598496,0.27979,2502.7,2502.6,3.90649]
[1730536598902,1.3462,2502.8,2502.6,3.6267]
[1730536599093,0.27979,2502.7,2502.6,3.9065]
[1730536599296,0.27979,2502.7,2502.6,3.4876]
[1730536599701,1.3462,2502.8,2502.6,3.2078]
[1730536600000,0.2798,2502.7,2502.6,0.2798]
[1730536602101,1.44093475,2502.7,2502.4,0.446]
[1730536602308,1.44093475,2502.7,2502.4,0.72582]
[1730536602309,1.72074475,2502.5,2502.4,0.72582]
[1730536603302,1.72074475,2502.5,2502.4,0.446]
[1730536604614,1.72074475,2502.5,2502.4,0.72582]
[1730536605209,1.72074475,2502.5,2502.4,0.446]
[1730536609013,0.27982,2502.4,2502.3,1.16403]
[1730536609319,0.72642,2502.4,2502.3,1.16403]
[1730536610617,0.27984,2502.3,2502.2,2.12134088]
[1730536611018,0.27984,2502.3,2502.2,2.40119088]
[1730536611218,0.72643,2502.4,2502.2,2.40119088]
[1730536611419,0.72643,2502.4,2502.3,0.27984]
[1730536612218,0.27982,2502.5,2502.4,0.27982]
[1730536613714,1.89803475,2502.7,2502.2,2.12134088]
[1730536613921,0.2798,2502.6,2502.5,0.27981]
[1730536618724,0.27981,2502.5,2502.4,0.27982]
[1730536620124,1.89803475,2502.7,2502.2,0.27984]
[1730536620125,0.27984,2502.3,2502.2,0.27984]
[1730536620522,0.27983,2502.4,2502.3,0.27983]
[1730536621629,0.2798,2502.6,2502.4,0.27981]
[1730536621819,5.09363475,2502.9,2502.5,0.447]
[1730536622024,0.2798,2502.7,2502.6,0.74]
[1730536622432,0.2798,2502.7,2502.6,0.4602]
[1730536623526,0.2798,2502.7,2502.6,0.74]
[1730536623931,0.2798,2502.7,2502.6,0.4602]
[1730536624428,1.72073475,2502.7,2502.6,0.4602]
[1730536624734,1.72073475,2502.7,2502.6,0.74]
[1730536626730,1.72073475,2502.7,2502.6,0.4602]
[1730536627528,1.44093475,2502.7,2502.5,0.447]
[1730536627728,0.4449,2502.9,2502.3,0.4335]
[1730536627729,1.85993475,2502.6,2502.3,0.4335]
[1730536628030,1.44093475,2502.4,2502.3,0.4335]
[1730536628230,1.72075475,2502.4,2502.3,0.4335]
[1730536628933,1.44093475,2502.4,2502.1,0.4259]
[1730536629140,0.4383,2502.3,2502.1,0.4259]
[1730536629327,0.4383,2502.3,2502.2,0.27985]
[1730536629328,0.71814,2502.3,2502.2,0.27985]
[1730536629823,0.71814,2502.3,2502.2,0.73625]
[1730536632638,0.71814,2502.3,2502.2,0.4564]
[1730536633028,0.71814,2502.3,2502.2,0.73625]
[1730536633528,0.71814,2502.3,2502.2,0.4564]
[1730536633733,0.71814,2502.3,2502.2,0.73625]
[1730536634435,0.71814,2502.3,2502.2,0.4564]
[1730536634635,0.71814,2502.3,2502.1,0.4259]
[1730536634636,0.27985,2502.2,2502.1,0.4259]
[1730536634835,1.72078475,2502.2,2502.1,0.4259]
[1730536639642,2.15478475,2502.2,2502.1,0.4259]
[1730536641041,1.87493475,2502.2,2502.0,0.4411]
[1730536641242,0.4615,2502.1,2501.9,0.4468]
[1730536641541,1.72080475,2502.0,2501.9,0.4521]
[1730536641736,2.16970475,2502.0,2501.9,1.03885617]
[1730536642140,2.16970475,2502.0,2501.9,1.03885622]
[1730536643445,5.00007889,2502.2,2501.9,0.4521]
[1730536643648,0.27987,2502.0,2501.9,0.4521]
[1730536643847,0.27987,2502.0,2501.9,1.03880838]
[1730536644147,0.27987,2502.0,2501.9,1.03880669]
[1730536645742,0.27987,2502.0,2501.9,0.4521]
[1730536645945,0.27987,2502.0,2501.9,1.0388067]
[1730536646141,0.27987,2502.0,2501.9,1.62551339]
[1730536646446,0.27987,2502.0,2501.9,1.62551545]
[1730536649349,0.27987,2502.0,2501.9,1.0388067]
[1730536649551,0.27987,2502.0,2501.9,1.62547299]
[1730536650549,0.27987,2502.0,2501.9,1.0388067]
[1730536653348,0.27987,2502.0,2501.9,0.4521]
[1730536660255,1.72080475,2502.0,2501.9,0.4521]
[1730536662960,0.27987,2502.0,2501.9,0.4521]
[1730536664057,1.72080475,2502.0,2501.9,0.4521]
[1730536665056,0.27993,2501.5,2501.4,3.48773]
[1730536665256,0.27993,2501.5,2501.4,5.10805764]
[1730536666057,0.27993,2501.5,2501.4,5.10808494]
[1730536666856,0.72693,2501.5,2501.4,5.10808494]
[1730536667256,0.72693,2501.5,2501.4,4.98304606]
[1730536667552,2.16786475,2501.5,2501.4,4.70311606]
[1730536667752,2.16786475,2501.5,2501.4,4.1166]
[1730536669953,2.16786475,2501.5,2501.4,3.6627]
[1730536672454,2.16786475,2501.5,2501.4,0.4549]
[1730536678367,0.27995,2501.3,2501.2,4.38735]
[1730536678569,0.27995,2501.3,2501.2,4.97366356]
[1730536678762,1.72088475,2501.3,2501.2,4.69371356]
[1730536678967,1.72088475,2501.3,2501.2,4.1074]
[1730536679572,1.72088475,2501.3,2501.2,3.6654]
[1730536680463,1.72088475,2501.3,2501.1,0.4541]
[1730536680464,1.44093475,2501.3,2501.1,0.4541]
[1730536680769,2.16809475,2501.2,2501.1,0.4541]
[1730536682565,0.27997,2501.1,2501.0,0.72048]
[1730536682874,0.27997,2501.1,2501.0,0.4405]
[1730536683058,0.27997,2501.1,2500.8,3.2078]
[1730536683059,1.88813475,2501.2,2500.8,3.2078]
[1730536683259,2.30873475,2501.0,2500.8,3.2078]
[1730536683465,0.27999,2500.9,2500.8,3.2078]
[1730536683673,0.69989,2500.9,2500.8,3.2078]
[1730536684373,0.69989,2500.9,2500.8,3.4878]
[1730536685468,0.69989,2500.9,2500.8,3.2078]
[1730536686574,4.4183,2500.9,2500.5,3.2078]
[1730536686769,1.72096475,2500.6,2500.5,3.2078]
[1730536687572,0.28004,2500.5,2500.4,0.4405]
[1730536687772,0.72644,2500.5,2500.4,0.4405]
[1730536688070,0.4464,2500.5,2500.3,0.8807]
[1730536688276,1.88733475,2500.5,2500.4,0.71595]
[1730536688578,2.16737475,2500.5,2500.4,0.71595]
[1730536688971,2.16737475,2500.5,2500.4,0.4359]
[1730536689473,2.16737475,2500.5,2500.4,0.71595]
[1730536691174,0.28006,2500.3,2500.2,3.2078]
[1730536691374,0.28006,2500.3,2499.2,3.2078]
[1730536691375,6.9246695,2500.3,2499.2,3.2078]
[1730536691574,0.28017,2499.3,2499.2,3.2078]
[1730536691777,0.28016,2499.5,2499.2,3.48798]
[1730536692077,3.90807,2499.9,2499.2,3.2078]
[1730536692078,1.44093475,2499.3,2499.2,3.2078]
[1730536692284,3.1620395,2499.3,2499.2,3.2078]
[1730536692680,3.1620395,2499.3,2498.8,0.442]
[1730536692681,6.8834695,2499.3,2498.8,3.2078]
[1730536692880,1.44093475,2498.9,2498.8,3.48803]
[1730536694176,3.6309,2499.6,2499.0,0.28021]
[1730536694478,1.44093475,2499.3,2499.1,0.423]
[1730536694880,1.72111475,2499.3,2499.1,0.423]
[1730536695075,0.28018,2499.2,2499.1,0.423]
[1730536695378,1.44093475,2499.2,2499.1,0.423]
[1730536697183,1.44093475,2499.2,2499.1,0.70319]
[1730536697583,1.44093475,2499.2,2499.1,3.91099]
[1730536701094,1.44093475,2499.2,2499.1,0.70319]
[1730536701291,1.44093475,2499.2,2499.1,0.28019]
[1730536701986,1.44093475,2499.2,2499.1,1.16489]
[1730536705696,5.44253475,2499.2,2498.7,0.4417]
[1730536705895,1.44093475,2499.3,2498.7,3.6495]
[1730536705896,1.44093475,2498.8,2498.7,3.6495]
[1730536706091,1.44093475,2498.8,2498.7,3.92974]
[1730536706292,1.44093475,2498.8,2498.7,0.72194]
[1730536706791,1.44093475,2498.8,2498.7,0.28024]
[1730536707589,1.44093475,2498.8,2498.5,0.4581]
[1730536707787,1.44093475,2498.8,2498.5,0.73835]
[1730536707788,1.44093475,2498.6,2498.5,0.73835]
[1730536709101,1.44093475,2498.6,2498.5,1.16875]
[1730536710599,1.44093475,2498.6,2498.5,5.17115]
[1730536715199,1.44093475,2498.6,2498.5,8.37895]
[1730536716107,0.8903,2499.1,2499.0,0.28021]
[1730536716297,2.33123475,2499.1,2499.0,0.28021]
[1730536716897,2.61142475,2499.1,2499.0,0.28021]
[1730536717203,6.61303475,2499.1,2498.9,0.28021]
[1730536717400,1.44093475,2499.0,2498.9,0.28021]
[1730536728806,1.44093475,2499.0,2498.9,0.74131]
[1730536730212,1.44093475,2499.0,2498.9,1.19031]
[1730536730803,1.44093475,2499.0,2498.9,5.19191]
[1730536731207,1.44093475,2499.0,2498.9,1.19031]
[1730536731405,1.44093475,2499.0,2498.9,1.77522677]
[1730536731603,1.90083475,2499.1,2499.0,0.28021]
[1730536731808,1.90083475,2499.1,2499.0,0.86512677]
[1730536732416,1.90083475,2499.1,2499.0,1.80164966]
[1730536733315,1.90083475,2499.1,2499.0,1.92770814]
[1730536733921,1.90083475,2499.1,2499.0,1.92809561]
[1730536734611,1.90083475,2499.1,2499.0,5.13589561]
[1730536736308,1.90083475,2499.1,2499.0,6.30996941]
[1730536736910,1.90083475,2499.1,2499.0,0.28021]
[1730536737120,1.90083475,2499.1,2499.0,6.31352719]
[1730536737510,1.90083475,2499.1,2499.0,3.10572719]
[1730536737717,1.90083475,2499.1,2499.0,6.31352719]
[1730536739121,1.90083475,2499.1,2499.0,5.13945369]
[1730536740125,1.44093475,2499.1,2499.0,5.13945369]
[1730536740517,1.44093475,2499.1,2499.0,5.13997764]
[1730536740717,5.44253475,2499.1,2499.0,0.58723827]
[1730536741017,5.72272475,2499.1,2499.0,0.58723827]
[1730536741924,0.28021,2499.0,2498.9,0.28022]
[1730536742214,1.72114475,2499.0,2498.9,0.86751507]
[1730536742413,8.93054475,2499.0,2498.9,0.58729507]
[1730536743011,8.93054475,2499.0,2498.8,0.28022]
[1730536743012,0.28022,2498.9,2498.8,0.28022]
[1730536743324,0.28022,2498.9,2498.8,0.58728331]
[1730536743523,4.0016,2498.9,2498.8,0.58728331]
[1730536743718,4.92894475,2499.0,2498.8,0.86751331]
[1730536743914,0.4315,2498.9,2498.8,0.28023]
[1730536744121,0.4315,2498.9,2498.8,0.86751158]
[1730536744422,0.71172,2498.9,2498.8,0.86751158]
[1730536744921,0.71172,2498.9,2498.8,0.58728158]
[1730536745119,0.71172,2498.9,2498.8,0.86751158]
[1730536745321,4.71332,2498.9,2498.8,0.58728158]
[1730536746412,4.4331,2498.9,2498.6,0.28024]
[1730536746621,0.71853,2498.8,2498.7,0.58728282]
[1730536746816,2.15946475,2498.8,2498.7,0.58728282]
[1730536747218,6.16186475,2498.8,2498.7,0.58728282]
[1730536750121,6.16186475,2498.8,2498.7,0.58726038]
[1730536750632,6.16186475,2498.8,2498.6,0.28025]
[1730536750821,1.87473475,2498.7,2498.6,0.28025]
[1730536751022,5.87713475,2498.7,2498.6,0.86750101]
[1730536752831,5.87713475,2498.7,2498.6,0.99268372]
[1730536753226,5.87713475,2498.7,2498.6,0.71243372]
[1730536753520,7.5983095,2498.7,2498.6,0.58725101]
[1730536753725,0.28031,2498.1,2497.8,0.28033]
[1730536753922,1.44093475,2497.9,2497.8,0.28033]
[1730536754121,1.44093475,2497.9,2497.8,0.99286687]
[1730536754325,1.44093475,2498.0,2497.8,4.71573687]
[1730536754533,1.44093475,2498.0,2497.9,5.01449351]
[1730536754828,1.44093475,2498.0,2497.9,5.13971427]
[1730536755633,1.44093475,2498.2,2498.1,0.28031]
[1730536755820,1.44093475,2498.2,2498.1,0.99284687]
[1730536756233,1.44093475,2498.2,2498.1,2.81879372]
[1730536756526,1.44093475,2498.2,2498.1,2.81866764]
[1730536756728,1.44093475,2498.4,2498.1,2.81866764]
[1730536756924,1.44093475,2498.7,2498.4,0.28027]
[1730536757125,1.44093475,2498.7,2498.6,0.28025]
[1730536757325,1.44093475,2498.8,2498.7,0.28024]
[1730536757524,1.44093475,2498.8,2498.7,4.99444869]
[1730536758424,1.44093475,2498.8,2498.7,5.93294514]
[1730536758731,1.44093475,2498.8,2498.7,9.14074514]
[1730536759134,1.44093475,2498.8,2498.7,5.13834514]
[1730536759332,1.44093475,2498.8,2498.7,9.14074514]
[1730536760231,1.44093475,2499.0,2498.9,0.28022]
[1730536760436,1.44093475,2499.0,2498.9,0.99202869]
[1730536762429,1.44093475,2499.2,2499.1,0.28019]
[1730536762739,1.44093475,2499.2,2499.1,0.99176837]
[1730536764235,1.44093475,2499.2,2499.1,0.99171774]
[1730536764440,6.33160865,2499.4,2499.1,0.71152774]
[1730536764745,6.33160865,2499.4,2499.3,0.28017]
[1730536765242,3.12380865,2499.4,2499.3,0.28017]
[1730536766129,3.12380865,2499.4,2499.2,0.28018]
[1730536766639,0.28019,2499.1,2499.0,0.4288]
[1730536766938,3.40399865,2499.1,2499.0,0.4288]
[1730536768436,0.28021,2499.0,2498.8,0.28023]
[1730536768637,0.28021,2499.0,2498.8,0.74273]
[1730536768836,0.28021,2499.0,2498.9,0.58630875]
[1730536769240,3.12380865,2499.1,2498.9,0.58630875]
[1730536769445,3.40400865,2499.1,2498.8,0.74273]
[1730536769631,3.12380865,2499.1,2498.8,0.74273]
[1730536769838,0.28021,2499.0,2498.7,0.28023]
[1730536770038,3.12380865,2498.8,2498.7,0.28024]
[1730536770240,3.12380865,2498.8,2498.7,0.99172505]
[1730536771042,0.4622,2498.9,2498.7,0.71148505]
[1730536771343,0.4622,2498.9,2498.8,0.86655142]
[1730536771939,0.74242,2498.9,2498.8,0.58632142]
[1730536772333,0.4622,2498.9,2498.8,0.58632142]
[1730536773544,0.74242,2498.9,2498.8,0.58632142]
[1730536773935,0.74242,2498.9,2498.8,0.58632553]
[1730536774140,0.4622,2498.9,2498.8,0.86655553]
[1730536774539,3.12380865,2499.0,2498.9,0.28022]
[1730536774734,7.46659865,2499.2,2499.0,0.2802]
[1730536775240,11.46819865,2499.2,2498.9,0.28021]
[1730536775441,11.46819865,2499.2,2498.6,3.2078]
[1730536775442,6.76870865,2499.2,2499.0,0.4196]
[1730536775637,3.56090865,2499.2,2499.0,0.4196]
[1730536775843,3.56090865,2499.2,2498.6,3.2078]
[1730536776048,3.40403865,2498.8,2498.7,0.4196]
[1730536776935,3.55560865,2498.8,2498.7,0.4196]
[1730536777141,3.83583865,2498.8,2498.7,0.4196]
[1730536777445,3.55560865,2498.8,2498.7,0.4196]
[1730536778439,3.55560865,2498.8,2498.3,4.0728]
[1730536778440,3.55560865,2498.8,2498.3,3.2078]
[1730536778646,4.00400865,2498.8,2498.4,1.13643975]
[1730536778846,4.28423865,2498.8,2498.4,0.4249]
[1730536779145,4.28423865,2498.8,2498.5,0.28025]
[1730536779543,4.28423865,2498.8,2498.6,0.28025]
[1730536780245,4.28423865,2498.8,2498.5,0.4314]
[1730536780246,0.28021,2499.0,2498.8,0.28022]
[1730536780443,0.28022,2498.9,2498.7,0.28023]
[1730536780644,0.28022,2498.9,2498.5,0.4314]
[1730536780845,0.28022,2498.9,2498.7,0.28023]
[1730536781442,3.12380865,2499.0,2498.5,0.4314]
[1730536781639,3.12380865,2499.0,2498.9,0.28022]
[1730536782045,3.12380865,2499.0,2498.5,0.4314]
[1730536782046,0.4535,2499.2,2499.1,0.28019]
[1730536785649,0.4535,2499.2,2498.9,0.8586]
[1730536785853,0.4535,2499.2,2499.0,0.28019]
[1730536786042,0.4535,2499.2,2499.1,0.28019]
[1730536786748,0.73368,2499.2,2499.0,0.2802]
[1730536786944,0.4535,2499.2,2499.0,0.2802]
[1730536787748,0.4535,2499.2,2499.1,0.28019]
[1730536788145,6.75510865,2499.5,2498.9,0.8586]
[1730536788346,3.2078,2499.5,2499.4,0.28016]
[1730536789558,3.2078,2499.5,2499.0,0.70052]
[1730536789758,3.2078,2499.5,2499.3,0.28016]
[1730536790060,3.2078,2499.5,2499.0,0.70052]
[1730536790249,3.2078,2499.5,2499.3,0.28016]
[1730536790449,3.2078,2499.5,2499.4,0.73316]
[1730536792366,3.40393865,2499.7,2499.5,0.28015]
[1730536792568,0.4383,2499.8,2499.5,0.28015]
[1730536792759,7.04121865,2499.9,2499.6,0.4319]
[1730536792955,7.04121865,2499.9,2499.7,0.71103]
[1730536793156,7.04121865,2499.9,2499.7,0.4309]
[1730536793157,6.76110865,2499.9,2499.7,0.4309]
[1730536793357,7.04121865,2499.9,2499.7,0.71102]
[1730536793660,7.04121865,2499.9,2499.8,0.4287]
[1730536795469,6.76110865,2499.9,2499.8,0.70882]
[1730536795771,0.4216,2500.2,2500.0,0.28009]
[1730536795772,3.12380865,2500.1,2500.0,0.28009]
[1730536795973,3.12380865,2500.1,2499.8,0.70881]
[1730536796268,3.12380865,2499.9,2499.8,0.70881]
[1730536796657,3.40390865,2499.9,2499.8,0.70881]
[1730536797061,3.12380865,2499.9,2499.8,0.70881]
[1730536797268,3.40390865,2499.9,2499.8,0.4287]
[1730536797666,3.12380865,2499.9,2499.8,0.4287]
[1730536797863,3.40390865,2499.9,2499.8,0.70882]
[1730536798170,3.12380865,2499.9,2499.8,0.4287]
[1730536798467,3.40390865,2499.9,2499.8,0.4287]
[1730536798860,3.12380865,2499.9,2499.8,0.4287]
[1730536799470,3.12380865,2499.9,2499.8,0.70882]
[1730536799666,3.40390865,2499.9,2499.8,0.4287]
[1730536800167,3.12380865,2499.9,2499.8,0.4287]
[1730536800359,3.12380865,2499.9,2499.7,0.4309]
[1730536800565,2.16345139,2499.8,2499.7,0.4309]
[1730536800761,1.16292,2499.8,2499.7,0.4309]
[1730536807866,0.8828,2499.8,2499.7,0.71103]
[1730536808073,1.44163139,2499.9,2499.8,0.28012]
[1730536808376,1.44163139,2499.9,2499.8,0.71722]
[1730536810073,1.44163139,2500.2,2499.8,5.87873139]
[1730536810265,1.44163139,2500.2,2499.8,1.87873139]
[1730536810471,1.44163139,2500.2,2500.1,0.28008]
[1730536812476,1.44163139,2500.2,2500.1,0.72098]
[1730536814873,4.64943139,2500.4,2500.1,0.4409]
[1730536815175,4.64943139,2500.4,2500.3,0.28006]
[1730536815478,3.2078,2500.4,2500.3,0.28006]
[1730536815973,1.44163139,2500.5,2500.3,0.28006]
[1730536816272,1.44163139,2500.4,2500.3,0.28006]
[1730536817575,1.44163139,2500.5,2500.2,0.4276]
[1730536817768,1.44163139,2500.5,2500.4,0.28005]
[1730536822174,0.4402,2500.6,2500.5,0.28004]
[1730536822380,2.17445139,2500.7,2500.5,0.28004]
[1730536822575,2.17445139,2500.7,2500.6,0.433]
[1730536822779,1.44163139,2500.7,2500.6,0.8743]
[1730536823178,1.72164139,2500.7,2500.6,0.8743]
[1730536823577,1.44163139,2500.7,2500.6,0.8743]
[1730536823982,1.72164139,2500.7,2500.6,0.8743]
[1730536825499,1.44163139,2500.7,2500.6,0.8743]
[1730536825679,1.44163139,2500.7,2500.6,1.15433]
[1730536826287,1.44163139,2501.0,2500.9,0.27999]
[1730536826785,1.44163139,2501.0,2500.6,0.8743]
[1730536826786,1.44163139,2501.1,2500.8,0.28]
[1730536826976,1.44163139,2501.1,2501.0,0.27998]
[1730536827384,1.44163139,2501.1,2501.0,1.18538]
[1730536829384,0.8791,2501.3,2501.1,0.27996]
[1730536829385,2.17358139,2501.3,2501.1,0.27996]
[1730536829983,2.17358139,2501.3,2501.0,0.9054]
[1730536829984,1.89363139,2501.3,2501.0,0.9054]
[1730536830187,2.17358139,2501.3,2501.1,0.27997]
[1730536830589,1.89363139,2501.3,2501.1,0.27996]
[1730536830790,2.17358139,2501.3,2501.1,0.27996]
[1730536831688,1.89363139,2501.3,2501.1,0.27996]
[1730536832192,1.89363139,2501.3,2501.0,0.9054]
[1730536832193,1.89363139,2501.3,2501.2,0.27996]
[1730536832394,5.10223139,2501.4,2501.1,0.27996]
[1730536832592,5.38217139,2501.4,2501.1,0.27996]
[1730536832897,0.27995,2501.3,2501.1,0.27996]
[1730536833295,5.38217139,2501.4,2501.1,0.27996]
[1730536833790,5.10223139,2501.4,2501.0,2.34703139]
[1730536834098,5.10223139,2501.4,2501.2,0.27995]
[1730536834285,5.10223139,2501.4,2501.3,0.27995]
[1730536834485,3.2078,2501.4,2501.3,0.27995]
[1730536835284,3.2078,2501.4,2501.1,1.44163139]
[1730536835490,4.64943139,2501.4,2501.0,2.34703139]
[1730536835696,1.72158139,2501.3,2501.1,0.27997]
[1730536836598,1.44163139,2501.3,2501.1,0.27997]
[1730536836996,1.44163139,2501.3,2501.0,0.9054]
[1730536837191,1.44163139,2501.3,2501.2,0.27996]
[1730536837493,1.44163139,2501.3,2501.1,0.27996]
[1730536837698,1.44163139,2501.3,2501.2,0.27996]
[1730536837889,1.44163139,2501.3,2501.0,0.9054]
[1730536838090,1.72158139,2501.3,2501.1,0.27996]
[1730536838593,1.44163139,2501.3,2501.1,0.27996]
[1730536838798,1.44163139,2501.3,2501.2,0.27996]
[1730536839600,1.44163139,2501.3,2501.0,0.9054]
[1730536840303,1.72158139,2501.3,2501.1,0.27997]
[1730536840797,1.72158139,2501.3,2501.0,0.9054]
[1730536841005,1.44163139,2501.3,2501.0,0.9054]